Cogmind - Beta 16 @@@ ROGUE MODE // 2025.11.25 @ 11:53:38 Player: ChromeKnight Result: Self-destructed Performance ------------- Evolutions (6) 3000 Regions Visited (14) 2800 Robots Destroyed (170) 850 Value Destroyed (6472) 6472 Prototype IDs (24) 480 Alien Tech Used (1) 200 Bonus (939) 939 TOTAL SCORE: 14741 Bonus ------- High Alert Combat Kills 245 Follower Combat Kills 736 Friendly Fire -42 Cogmind --------- Core Integrity 289/1150 Matter 125/300 Energy 100/100 System Corruption 11% Temperature Cool (0) Movement Rolling (221) Location -4/Factory Parts ------- > --- POWER (2) -------- (None) > --- PROPULSION (6) --- Wheeled Armored-Myomer Exoskeleton > --- UTILITY (8) ------ Armored Scrap Engine High-capacity Storage Unit Advanced Signal Interpreter Hacking Suite Hacking Suite Improved System Restoration Module > --- WEAPON (3) ------- (None) > --- INVENTORY (20) --- Advanced Power Amplifier Advanced Heat Sink Improved Cooling System Advanced Cooling System Improved Particle Charger Transmission Jammer Advanced Reaction Control System Improved Heavy Armor Plating Improved Shield Generator Improved Force Field System Shield Transdimensional Reconstructor Peak State ------------ > --- POWER ------------ Angular-Fusion Engine > --- PROPULSION ------- Wheeled Armored-Myomer Exoskeleton > --- UTILITY ---------- Armored Scrap Engine High-capacity Storage Unit Advanced Sensor Array Advanced Signal Interpreter Hacking Suite Hacking Suite Advanced System Shield > --- WEAPON ----------- Ballistic Penetrator Construct/C > --- INVENTORY -------- Advanced Power Amplifier Advanced Heat Sink Improved Cooling System Advanced Cooling System Improved Particle Charger Transmission Jammer Advanced Reaction Control System Improved Heavy Armor Plating Improved Shield Generator Improved Force Field System Shield Improved System Restoration Module Transdimensional Reconstructor Scatter Rocket Array Plasma Cutter Heavy Flail [Rating: 95] Favorites ----------- Power Constructs Engine Constructs Power Core Light Nuclear Core Propulsion Light Treads Treads Light Treads Leg Carbon-fiber Leg Wheel Constructs Hover Unit Aerolev Unit Flight Unit Improved VTOL Module Utility High-capacity Storage Unit Device Armored Scrap Engine Storage High-capacity Storage Unit Processor Improved Signal Interpreter Hackware Hacking Suite Protection Improved Light Armor Plating Weapon Constructs Energy Gun Particle Gun Energy Cannon Heavy Particle Cannon Ballistic Gun Subdweller Machine Gun Ballistic Cannon Constructs Launcher Grenade Launcher Special Weapon Plasma Cutter Impact Weapon Heavy Flail Build | -11 -10 -10 -10 -8 -8 -8 -6 -6 -5 -5 -5 -5 -4 -4 ------- Run | Yrd Mat Min Sub Mat Sto Rec Fac Ext Fac Upp Upp Zhi Pro Fac Slots Evolved 12 | . . . . 4 . . 4 . 2 . . . . 2 Power 1 | . . . . 1 . . . . . . . . . . Propulsion 4 | . . . . 2 . . 1 . . . . . . 1 Utility 6 | . . . . 1 . . 2 . 2 . . . . 1 Weapon 1 | . . . . . . . 1 . . . . . . . Parts Attached 79 | 6 5 1 8 7 30 2 9 . 1 1 . . 2 7 Power 8 | 1 1 . 1 1 4 . . . . . . . . . Engine 6 | 1 . . 1 1 3 . . . . . . . . . Core 2 | . 1 . . . 1 . . . . . . . . . Reactor . | . . . . . . . . . . . . . . . Propulsion 22 | 2 . . 4 2 14 . . . . . . . . . Treads 12 | 2 . . 4 1 5 . . . . . . . . . Leg 3 | . . . . . 3 . . . . . . . . . Wheel 5 | . . . . 1 4 . . . . . . . . . Hover 1 | . . . . . 1 . . . . . . . . . Flight 1 | . . . . . 1 . . . . . . . . . Utility 27 | 1 2 . 1 2 4 1 6 . 1 1 . . 1 7 Device 13 | . 1 . . . 2 1 4 . 1 1 . . 1 2 Storage 3 | 1 1 . . 1 . . . . . . . . . . Processor 5 | . . . . 1 1 . 1 . . . . . . 2 Hackware 4 | . . . . . . . 1 . . . . . . 3 Protection 2 | . . . 1 . 1 . . . . . . . . . Artifact . | . . . . . . . . . . . . . . . Weapon 22 | 2 2 1 2 2 8 1 3 . . . . . 1 . Energy Gun 5 | . 2 . . . 3 . . . . . . . . . Energy Cannon 4 | . . . . 1 2 . 1 . . . . . . . Ballistic Gun 7 | 2 . . 1 1 2 . . . . . . . 1 . Ballistic Cannon . | . . . . . . . . . . . . . . . Launcher 4 | . . 1 1 . . . 2 . . . . . . . Special Weapon 1 | . . . . . 1 . . . . . . . . . Impact Weapon 1 | . . . . . . 1 . . . . . . . . Slashing Weapon . | . . . . . . . . . . . . . . . Piercing Weapon . | . . . . . . . . . . . . . . . Special Melee Weapon . | . . . . . . . . . . . . . . . Unidentified Prototypes 10 | . . . . 1 5 1 2 . . . . 1 . . Parts Lost 31 | . . . 5 2 7 . . 2 1 2 . . 4 8 Power 5 | . . . 1 . 1 . . 1 . 1 . . . 1 Propulsion 7 | . . . 2 . 4 . . . . . . . . 1 Utility 7 | . . . . 1 1 . . . 1 . . . 2 2 Weapon 12 | . . . 2 1 1 . . 1 . 1 . . 2 4 Highest Loss Streak 5 | . . . 2 1 2 . . 2 1 1 . . 1 5 To Critical Strikes 2 | . . . . 1 . . . . . . . . . 1 Average Backups 17 | . 9 18 18 21 24 17 15 18 19 18 18 19 18 16 Power . | . 1 2 1 1 . . . . . . . . . . Propulsion 3 | . 1 3 2 5 12 8 1 . . . . . . . Utility 7 | . . 3 5 7 5 3 8 13 13 12 12 12 13 12 Weapon 4 | . 3 5 4 5 6 4 3 3 5 5 5 5 2 1 Tool/Special . | . . . . . . . . . . . . . . . Unused Backups 53 | . . . . 10 6 16 3 3 . 1 . 2 1 11 Power . | . . . . . . . . . . . . . . . Propulsion 14 | . . . . . 1 11 . 2 . . . . . . Utility 17 | . . . . 2 3 . . 1 . 1 . . . 10 Weapon 17 | . . . . 4 2 5 3 . . . . 2 1 . Tool/Special 5 | . . . . 4 . . . . . . . . . 1 Average Slot Usage (%) 70 | . 96 100 99 83 97 71 45 46 50 47 47 46 38 45 Engine 5 | . 2 . 2 14 16 13 2 3 5 . . . 2 4 Core 3 | . 11 14 11 . . . 3 2 . . . . . . Treads 10 | . 28 28 27 20 7 9 . . . . . . . . Leg 3 | . . . . . 4 11 6 5 3 3 . 3 5 2 Wheel 2 | . . . . 7 19 . . . . 1 5 1 . 2 Device 11 | . 11 14 6 1 6 8 12 13 21 22 23 17 8 9 Storage 8 | . 14 14 14 9 9 9 6 6 5 5 5 5 5 5 Processor 3 | . . . . 3 8 3 5 6 5 5 5 5 5 7 Protection 1 | . . . 7 9 2 . . . . . . . . . Energy Gun 4 | . 20 26 4 . 4 3 . . . . . . . . Energy Cannon 1 | . . . . 4 7 . 2 . . 1 3 . . . Ballistic Gun 4 | . 7 . 9 9 5 7 1 . . . . . 1 . Ballistic Cannon 1 | . . . . . . . 2 6 5 3 1 5 2 4 Launcher 2 | . . 1 14 4 . . . . . . . . . . Peak Build Rating 95 | 6 13 15 15 27 45 51 82 86 86 84 71 91 91 95 Average Rating 48 | 4 11 14 14 22 37 45 71 80 81 74 67 83 79 88 On Entrance 47 | . 6 13 15 15 27 45 51 82 76 78 71 70 91 78 Avg Prop Armor Cover (%) 13 | . . . . 17 13 10 . . . . . . . . Naked Turns . | . . . . . . . . . . . . . . . Heaviest Build 107 | 10 50 50 55 104 107 102 83 79 66 69 63 67 67 59 Greatest Support 133 | 40 40 40 40 60 60 63 94 133 84 53 61 61 61 81 Greatest Overweight (x) 8 | 1 1 1 1 6 8 3 1 . 1 1 1 1 1 . Average Overweight (x) . | . . 1 1 4 4 . . . . 1 . . . . Largest Inventory Capacity 25 | 8 20 20 20 25 25 25 20 20 20 20 20 20 20 20 Average Capacity 20 | 7 16 20 20 23 25 23 20 20 20 20 20 20 20 20 Most Carried 25 | 1 15 20 20 25 25 25 20 20 20 20 20 20 20 19 Average Carried 18 | . 9 18 18 21 24 17 15 18 19 18 19 19 18 17 Final Capacity 25 | 8 20 20 20 25 25 20 20 20 20 20 20 20 20 20 Final Carried 25 | 1 15 20 17 24 25 8 20 18 20 20 20 20 17 13 Scrap Engine Consumption 131 | . . . . . . 29 33 27 7 11 4 7 5 8 Constructs Created 5 | . . . . . . 3 . . . . . 1 1 . Constructs Modified 50 | . . . . . . 10 10 11 5 5 3 3 1 2 Class Distribution -------------------- 40% | Construct 23% | Scavenger-Mutant 14% | Mutant 10% | Commander-Mutant 8% | Commander-Construct Dominant Class ---------------- Scavenger-Mutant | -10/Materials Scavenger-Mutant | -10/Mines Scavenger-Mutant | -10/Subcaves Mutant | -8/Materials Mutant | -8/Storage Commander-Mutant | -8/Recycling Construct | -6/Factory Construct | -6/Extension Construct | -5/Factory Construct | -5/Upper Caves Construct | -5/Upper Caves Construct | -5/Zhirov Construct | -4/Proximity Caves Construct | -4/Factory Resources | -11 -10 -10 -10 -8 -8 -8 -6 -6 -5 -5 -5 -5 -4 -4 ----------- Run | Yrd Mat Min Sub Mat Sto Rec Fac Ext Fac Upp Upp Zhi Pro Fac Matter Collected 4208 | 254 133 78 288 239 621 187 333 680 184 552 170 82 286 121 Remotely . | . . . . . . . . . . . . . . . Salvage Created 7620 | . 548 192 305 267 1643 31 665 2027 202 663 232 430 300 115 Parts 324 | . 29 5 18 17 93 2 26 71 8 27 11 3 12 2 Haulers Intercepted 5 | . 2 . . . 1 . 1 1 . . . . . . Recyclers Shooed 7 | . 1 1 . . 2 . . 1 1 . . . . 1 Parts Field Recycled . | . . . . . . . . . . . . . . . Retrieved Matter . | . . . . . . . . . . . . . . . Parts Self-Destructed 38 | . . . 3 . . . . . . 18 7 2 8 . Prevented 5 | . . . . . . . . . . 5 . . . . Parts Restored . | . . . . . . . . . . . . . . . Kills | -11 -10 -10 -10 -8 -8 -8 -6 -6 -5 -5 -5 -5 -4 -4 ------- Run | Yrd Mat Min Sub Mat Sto Rec Fac Ext Fac Upp Upp Zhi Pro Fac Combat Hostiles Destroyed 134 | . 9 3 10 6 27 1 9 22 4 22 8 . 10 3 Melee 3 | . . . . 3 . . . . . . . . . . Guns 18 | . 9 . . 1 7 1 . . . . . . . . Cannons 60 | . . . . 2 20 . 4 18 4 5 4 . 3 . AOE 47 | . . 3 10 . . . 5 . . 17 4 . 7 1 Classes Destroyed 19 | . 6 . 1 3 2 . 1 2 . 3 . . 1 . Worker 3 | . . . . . 3 . . . . . . . . . Builder 4 | . . . . . 1 . 2 1 . . . . . . Hauler 5 | . 2 . . . 1 . 1 1 . . . . . . Recycler 11 | . 1 2 . . 3 . 1 4 . . . . . . Minesweeper 1 | . . . . . . . . . . 1 . . . . Operator 5 | . 1 . . . 1 . 1 2 . . . . . . Drone 2 | . . . . . . . . . . . . . 2 . Watcher 5 | . 1 . . . 1 . 2 1 . . . . . . Swarmer 33 | . 2 . . . 4 . 5 3 . 13 5 . 1 . Grunt 52 | . 7 3 . 2 13 1 . 9 4 5 3 . 5 . Brawler 2 | . . . . . . . . . . 2 . . . . Duelist 1 | . . . . . . . . 1 . . . . . . Sentry 20 | . . . . 1 10 . 3 3 . 2 . . 1 . Specialist 1 | . . . . 1 . . . . . . . . . . Hunter 6 | . . . . 2 . . . 3 . . . . . 1 Programmer 3 | . . . . . . . 1 . . . . . . 2 Behemoth 3 | . . . . . . . . 2 . . . . 1 . Subdweller 10 | . . . 10 . . . . . . . . . . . Tinkerer 1 | . . . . . . . . . . 1 . . . . Thug 2 | . . . . . . . . 2 . . . . . . Butcher 1 | . . . . . . . . 1 . . . . . . Best Kill Streak 6 | . 3 3 4 3 5 1 5 6 4 6 4 . 4 1 Combat Bots Only 6 | . 3 3 4 3 5 1 3 5 4 6 4 . 4 1 Max Kills in Single Turn 5 | . 1 2 2 1 2 1 1 2 1 5 3 . 3 1 Gunslinging . | . . . . . . . . . . . . . . . Exploded 5 | . . 2 2 . . . 1 . . 5 3 . 3 1 Melee 1 | . . . . 1 . . . . . . . . . . Uniques/NPCs Destroyed . | . . . . . . . . . . . . . . . Combat | -11 -10 -10 -10 -8 -8 -8 -6 -6 -5 -5 -5 -5 -4 -4 -------- Run | Yrd Mat Min Sub Mat Sto Rec Fac Ext Fac Upp Upp Zhi Pro Fac Hostile Shots Fired 1062 | . 45 3 27 60 169 8 106 174 34 58 18 . 86 274 Missed 359 | . 11 . 8 16 52 3 41 76 16 22 7 . 28 79 Hits 703 | . 34 3 19 44 117 5 65 98 18 36 11 . 58 195 Melee 5 | . . . . . . . . . . 5 . . . . Projectile 698 | . 34 3 19 44 117 5 65 98 18 31 11 . 58 195 AOE 4 | . . 1 . . . 3 . . . . . . . . Critical Strikes 22 | . . . . 2 4 1 . 4 . 1 1 . 2 7 Damage Taken 12178 | . 437 39 558 691 1626 144 714 1603 148 787 219 . 1784 3428 Core 1970 | . 85 10 106 86 278 32 136 183 19 36 13 . 125 861 Absorbed by Shields . | . . . . . . . . . . . . . . . Ignored by Resistances 77 | . . . . . . . . . . . . . 77 . Regen/Repaired (Parts) 2668 | . . . . . . 31 359 621 223 171 15 217 42 989 Core Remaining (%) 57 | 100 . . 19 . . 28 . 62 . . . . 80 . Volleys Fired 553 | . 59 12 34 14 99 10 60 114 20 31 10 18 45 27 Largest 2 | . 2 2 2 2 2 2 1 1 1 2 2 1 1 1 Hottest 150 | . 105 105 60 103 150 94 90 84 36 101 115 63 63 50 Shots Fired 732 | . 118 18 36 24 193 15 60 114 20 33 11 18 45 27 Gun 267 | . 118 12 2 14 85 15 21 . . . . . . . Cannon 401 | . . . . 10 108 . 34 114 20 25 9 18 39 24 Launcher 62 | . . 6 34 . . . 5 . . 8 2 . 6 1 Special 2 | . . . . . . . . . . . . . . 2 Kinetic 342 | . 77 . 2 14 71 10 21 16 20 24 6 18 39 24 Thermal 328 | . 41 12 . 10 122 5 34 98 . 1 3 . . 2 Explosive 62 | . . 6 34 . . . 5 . . 8 2 . 6 1 Electromagnetic . | . . . . . . . . . . . . . . . Robot Hit Streak 21 | . 21 4 21 4 16 5 6 14 9 5 5 21 21 4 Robot Miss Streak 12 | . 4 3 1 1 4 3 5 5 2 5 9 1 12 4 Penetration Max 1 | . . . . . 1 . . . 1 1 . . . . Secondary Targets . | . . . . . . . . . . . . . . . Shots Hit Robots 490 | . 80 10 20 11 126 12 45 73 11 16 8 17 35 26 Core Hits 305 | . 29 8 24 6 51 4 33 32 6 44 11 7 39 11 Critical Kills 3 | . 1 . . . . . . 2 . . . . . . Critical Parts Destroyed 4 | . . . . . . . . . . 1 . . . 3 Critical Strikes 12 | . 2 . . . 3 . . 2 . 1 . . . 4 Burn 3 | . 1 . . . 2 . . . . . . . . . Meltdown 2 | . . . . . . . . 2 . . . . . . Destroy 3 | . 1 . . . 1 . . . . 1 . . . . Blast 1 | . . . . . . . . . . . . . . 1 Smash 3 | . . . . . . . . . . . . . . 3 Melee Attacks 33 | . . . . . . 7 . . . . . . . 26 Impact 33 | . . . . . . 7 . . . . . . . 26 Slashing . | . . . . . . . . . . . . . . . Piercing . | . . . . . . . . . . . . . . . Sneak Attacks . | . . . . . . . . . . . . . . . Combat Hostiles . | . . . . . . . . . . . . . . . Follow-up Attacks . | . . . . . . . . . . . . . . . Damage Inflicted 23260 | . 832 376 1663 276 2964 246 2107 5566 692 2429 702 1246 3176 985 Guns 2672 | . 832 95 17 46 1079 246 357 . . . . . . . Cannons 13793 | . . . . 200 1825 . 1185 5344 604 698 424 1246 2046 221 Explosions 6062 | . . 277 1646 . . . 565 222 88 1731 278 . 1130 125 Melee 547 | . . . . . . . . . . . . . . 547 Ramming 176 | . . 4 . 30 60 . . . . . . . . 82 Kinetic 7834 | . 390 . 17 46 850 190 357 785 604 698 384 1246 2046 221 Thermal 9135 | . 442 95 . 200 2054 56 1369 4781 88 . 40 . . 10 Explosive 5568 | . . 277 1646 . . . 381 . . 1731 278 . 1130 125 Electromagnetic . | . . . . . . . . . . . . . . . Impact 547 | . . . . . . . . . . . . . . 547 Slashing . | . . . . . . . . . . . . . . . Piercing . | . . . . . . . . . . . . . . . Highest Corruption 11 | . . . . . 3 3 . . . . . . . 11 Average Corruption 3 | . . . . . 2 3 . . . . . . . 5 Corruption Purged . | . . . . . . . . . . . . . . . Corruption Blocked . | . . . . . . . . . . . . . . . Effects 70 | . . . . . 27 37 . . . . . . . 6 Message Errors 14 | . . . . . 7 6 . . . . . . . 1 Matter Fused 11 | . . . . . 4 6 . . . . . . . 1 Heat Flow Errors 10 | . . . . . 5 4 . . . . . . . 1 Energy Discharges 14 | . . . . . 4 9 . . . . . . . 1 Data Loss (minor) 10 | . . . . . 3 5 . . . . . . . 2 Data Loss (major) 6 | . . . . . 1 5 . . . . . . . . Misfires 2 | . . . . . 2 . . . . . . . . . Alerts 2 | . . . . . . 2 . . . . . . . . Weapon Failures 1 | . . . . . 1 . . . . . . . . . Overload Shots . | . . . . . . . . . . . . . . . Overflow Damage 838 | . . 18 1 . 46 . 166 306 . 26 . 30 . 245 Projectiles 427 | . . . . . 21 . 75 301 . . . 30 . . Explosions 141 | . . 18 1 . . . 91 5 . 26 . . . . Melee 270 | . . . . . 25 . . . . . . . . 245 Knockbacks 29 | . . . . . . . . 6 10 . 2 1 . 10 Impact 7 | . . . . . . . . . . . . . . 7 Kinetic 21 | . . . . . . . . 6 9 . 2 1 . 3 Secondary 1 | . . . . . . . . . 1 . . . . . Self-Inflicted Damage 430 | . . . 149 . 30 . 4 . . 46 39 . 107 55 Shots 19 | . . . 8 . . . 1 . . 2 2 . 5 1 Rammed 39 | . . 1 . 4 1 . . . . . . . . 33 Targets Rammed 42 | . . 1 . 7 1 . . . . . . . . 33 Kicked . | . . . . . . . . . . . . . . . Crushed 3 | . . . . 3 . . . . . . . . . . Highest Temperature 609 | . 135 18 . 210 609 203 328 229 . 50 33 28 37 107 Average Temperature 83 | . 34 9 . 84 123 54 95 37 . 22 20 17 19 76 Received Heat Transfer 1969 | . 222 18 102 99 630 36 192 285 72 54 54 . 205 . Effects 9 | . . . . . 9 . . . . . . . . . Shutdowns 5 | . . . . . 5 . . . . . . . . . Energy Bleed 1 | . . . . . 1 . . . . . . . . . Matter Decay 1 | . . . . . 1 . . . . . . . . . Short Circuit 2 | . . . . . 2 . . . . . . . . . Siege Activations . | . . . . . . . . . . . . . . . Martial Activations . | . . . . . . . . . . . . . . . Shielding Activations . | . . . . . . . . . . . . . . . Robots Disrupted . | . . . . . . . . . . . . . . . Combat Hostiles . | . . . . . . . . . . . . . . . Robots Corrupted 2 | . . . . . . . . . . . . . . 2 Combat Hostiles 2 | . . . . . . . . . . . . . . 2 Parts Fried 2 | . . . . . 1 . . . . . . . . 1 Impact Corruptions 12 | . . . . . 1 . . . . . . . . 11 Robots Melted 4 | . . . . . . . . 4 . . . . . . Combat Hostiles 4 | . . . . . . . . 4 . . . . . . Parts Melted 28 | . 3 . 1 . 7 . 4 13 . . . . . . Heat Transferred 12049 | . 1112 223 . 296 3293 111 1890 4950 100 . 37 . . 37 Parts Sabotaged . | . . . . . . . . . . . . . . . Parts Stolen . | . . . . . . . . . . . . . . . Parts Stripped . | . . . . . . . . . . . . . . . Power Chain Reactions . | . . . . . . . . . . . . . . . Alert | -11 -10 -10 -10 -8 -8 -8 -6 -6 -5 -5 -5 -5 -4 -4 ------- Run | Yrd Mat Min Sub Mat Sto Rec Fac Ext Fac Upp Upp Zhi Pro Fac Maximum Alert Level 3 | . . . . . 2 1 2 2 1 . . . . 3 Low Security (%) 61 | 100 100 100 . 100 35 99 . 2 17 . . . . 3 Level 1 18 | . . . . . 16 . 66 46 82 . . . . 40 Level 2 18 | . . . . . 48 . 33 50 . . . . . 40 Level 3 1 | . . . . . . . . . . . . . . 15 Level 4 . | . . . . . . . . . . . . . . . Level 5 . | . . . . . . . . . . . . . . . High Security . | . . . . . . . . . . . . . . . Max Security . | . . . . . . . . . . . . . . . Peak Influence 767 | . 65 96 . 72 556 205 499 553 327 . . . . 767 Initial 750 | . . . . . 29 205 344 205 262 . . . . 750 Average 177 | . 11 37 . 6 317 40 363 395 251 . . . . 457 Influence Increases 6066 | . 296 127 . 187 1060 435 1038 767 185 530 270 15 190 966 Destroy 0b10 Robot/C 2760 | . 180 80 . 120 560 120 300 480 80 440 180 . 160 60 Destroy 0b10 Robot/NC 205 | . 25 10 . . 50 5 40 45 . 5 . 15 10 . Destroy Leader 520 | . 46 10 . 50 154 . 78 82 10 20 20 . 20 30 Allied During Kill 345 | . . 1 . . 59 73 101 21 . 65 25 . . . Successful Hack 127 | . 30 . . . 7 26 42 22 . . . . . . Select Force Hacks 180 | . . . . . . 180 . . . . . . . . Disable Machine 360 | . . . . 15 135 30 105 45 15 . . . . 15 Destroy Structure 309 | . . 26 . 2 35 1 57 42 80 . . . . 66 Advance Influence 1050 | . . . . . . . 300 . . . . . . 750 Lose Combat Pursuer 210 | . 15 . . . 60 . 15 30 . . 45 . . 45 Influence Decreases 5860 | . 296 127 . 115 604 857 724 651 424 729 336 47 190 760 Entered New Map 1079 | . . . . . 43 323 62 215 274 111 19 32 . . Time Decay 3801 | . 296 127 . 105 491 454 362 356 140 598 297 15 180 380 Search Patrol Dispatched 300 | . . . . . . . . . . . . . . 300 Lost Part 220 | . . . . 10 70 . . 20 10 20 . . 10 80 Lost Ally 460 | . . . . . . 80 300 60 . . 20 . . . Squads Dispatched 14 | . 1 . . 2 1 . 6 2 1 . . . . 1 Investigation 5 | . 1 . . . . . 3 . 1 . . . . . Extermination 2 | . . . . . . . 1 . . . . . . 1 Reinforcement 7 | . . . . 2 1 . 2 2 . . . . . . Assault . | . . . . . . . . . . . . . . . Garrison . | . . . . . . . . . . . . . . . Intercept . | . . . . . . . . . . . . . . . Searches Triggered 3 | . . . . . . . . . . . . . . 3 Construction Impeded 3 | . . . . 1 . . 1 1 . . . . . . Haulers Reinforced 1 | . . . . . . . 1 . . . . . . . Active Scanning Responses . | . . . . . . . . . . . . . . . Cargo Convoy Interrupts . | . . . . . . . . . . . . . . . Stealth | -11 -10 -10 -10 -8 -8 -8 -6 -6 -5 -5 -5 -5 -4 -4 --------- Run | Yrd Mat Min Sub Mat Sto Rec Fac Ext Fac Upp Upp Zhi Pro Fac Distress Signals 9 | . 1 . . 1 2 2 . 3 . . . . . . Communications Jammed . | . . . . . . . . . . . . . . . Distress Signals . | . . . . . . . . . . . . . . . Times Spotted 199 | . 23 4 11 12 32 7 26 27 7 22 8 . 13 7 Peak Tracking Total 6 | . 4 3 2 6 6 2 5 6 3 5 4 . 4 3 Tactical Retreats 10 | . 1 . . . 3 . 1 1 . . 1 . . 3 Traps | -11 -10 -10 -10 -8 -8 -8 -6 -6 -5 -5 -5 -5 -4 -4 ------- Run | Yrd Mat Min Sub Mat Sto Rec Fac Ext Fac Upp Upp Zhi Pro Fac Traps Triggered 7 | . 1 . . . 4 . 1 . . . . . . 1 Indirectly . | . . . . . . . . . . . . . . . Trap Hack Attempts . | . . . . . . . . . . . . . . . Triggered . | . . . . . . . . . . . . . . . Disarmed . | . . . . . . . . . . . . . . . Reprogrammed . | . . . . . . . . . . . . . . . Reused . | . . . . . . . . . . . . . . . Traps Extracted . | . . . . . . . . . . . . . . . Installed . | . . . . . . . . . . . . . . . Triggered . | . . . . . . . . . . . . . . . Machines | -11 -10 -10 -10 -8 -8 -8 -6 -6 -5 -5 -5 -5 -4 -4 ---------- Run | Yrd Mat Min Sub Mat Sto Rec Fac Ext Fac Upp Upp Zhi Pro Fac Machines Disabled 31 | . . . . 1 9 2 7 4 1 4 . 2 . 1 Max in Single Turn 4 | . . . . 1 1 1 4 1 1 1 . 1 . 1 Garrison Access 1 | . . . . . . . . . . . . . . 1 Energy Cycler 1 | . . . . . . . . 1 . . . . . . Machines Repaired . | . . . . . . . . . . . . . . . Machines Dismantled 2 | . . . . . 2 . . . . . . . . . Machines Sabotaged . | . . . . . . . . . . . . . . . Overloaded Fab Kills . | . . . . . . . . . . . . . . . Hacking | -11 -10 -10 -10 -8 -8 -8 -6 -6 -5 -5 -5 -5 -4 -4 --------- Run | Yrd Mat Min Sub Mat Sto Rec Fac Ext Fac Upp Upp Zhi Pro Fac Machines Accessed 55 | . 6 . . 1 8 13 10 6 2 1 1 4 . 3 Terminals 39 | . 6 . . 1 8 6 8 6 2 . . . . 2 Fabricators 2 | . . . . . . . 2 . . . . . . . Repair Stations . | . . . . . . . . . . . . . . . Recycling Units 6 | . . . . . . 6 . . . . . . . . Scanalyzers . | . . . . . . . . . . . . . . . Garrison Access 1 | . . . . . . . . . . . . . . 1 Total Hacks 104 | . 14 . . 1 12 18 20 11 4 1 1 17 . 5 Successful 58 | . 7 . . 1 4 13 7 5 . 1 1 17 . 2 Failed 46 | . 7 . . . 8 5 13 6 4 . . . . 3 Catastrophic 16 | . 1 . . . 3 . 6 2 3 . . . . 1 Database Lockouts . | . . . . . . . . . . . . . . . Manual 57 | . 14 . . . 6 16 7 10 . 1 . . . 3 Terminals 68 | . 14 . . 1 12 8 15 11 4 . . . . 3 Fabricators 5 | . . . . . . . 5 . . . . . . . Repair Stations . | . . . . . . . . . . . . . . . Recycling Units 8 | . . . . . . 8 . . . . . . . . Scanalyzers . | . . . . . . . . . . . . . . . Garrison Access 2 | . . . . . . . . . . . . . . 2 Terminal Hacks 33 | . . . . 1 4 2 5 1 . 1 1 17 . 1 Record 5 | . . . . . . . . . . . . 5 . . Part Schematic 4 | . . . . . . . . . . . . 4 . . Robot Analysis 4 | . . . . . . . . . . . . 4 . . Prototype ID Bank 4 | . . . . . . . . . . . . 4 . . Open Door 7 | . . . . . 4 . 1 . . 1 1 . . . Branch Access Points 3 | . . . . 1 . . 1 . . . . . . 1 Alert Level 1 | . . . . . . . 1 . . . . . . . Locate Traps 1 | . . . . . . . 1 . . . . . . . Zone Layout 2 | . . . . . . . 1 1 . . . . . . Release Object 2 | . . . . . . 2 . . . . . . . . Fabricator Hacks . | . . . . . . . . . . . . . . . Repair Station Hacks . | . . . . . . . . . . . . . . . Recycling Unit Hacks . | . . . . . . . . . . . . . . . Scanalyzer . | . . . . . . . . . . . . . . . Garrison Access Hacks 1 | . . . . . . . . . . . . . . 1 Seal Access 1 | . . . . . . . . . . . . . . 1 Unauthorized Hacks 24 | . 7 . . . . 11 2 4 . . . . . . Terminals 18 | . 7 . . . . 5 2 4 . . . . . . Assimilate 2 | . . . . . . . 2 . . . . . . . Disrupt 1 | . 1 . . . . . . . . . . . . . Operators 1 | . 1 . . . . . . . . . . . . . Skim 14 | . 5 . . . . 5 . 4 . . . . . . Fabricators . | . . . . . . . . . . . . . . . Repair Stations . | . . . . . . . . . . . . . . . Recycling Units 6 | . . . . . . 6 . . . . . . . . Tunnel 6 | . . . . . . 6 . . . . . . . . Scanalyzers . | . . . . . . . . . . . . . . . Garrison Access . | . . . . . . . . . . . . . . . Data Cores Recovered 4 | . 1 . . . . . 1 2 . . . . . . Used 2 | . 1 . . . . . . 1 . . . . . . Hacking Detections 27 | . 5 . . . 5 1 7 4 2 . . . . 3 Full Trace Events 2 | . . . . . . . 1 . 1 . . . . . Feedback Events . | . . . . . . . . . . . . . . . Feedback Blocked . | . . . . . . . . . . . . . . . Robot Schematics Acquired . | . . . . . . . . . . . . . . . Robots Built . | . . . . . . . . . . . . . . . Authchips . | . . . . . . . . . . . . . . . Time . | . . . . . . . . . . . . . . . Total Robot Build Rating . | . . . . . . . . . . . . . . . Part Schematics Acquired 4 | . . . . . . . . . . . . 4 . . Parts Built . | . . . . . . . . . . . . . . . Authchips . | . . . . . . . . . . . . . . . Time . | . . . . . . . . . . . . . . . Total Part Build Rating . | . . . . . . . . . . . . . . . Part Studies Acquired . | . . . . . . . . . . . . . . . Parts Repaired . | . . . . . . . . . . . . . . . Time . | . . . . . . . . . . . . . . . Parts Recycled . | . . . . . . . . . . . . . . . Recycled Matter . | . . . . . . . . . . . . . . . Retrieved Matter . | . . . . . . . . . . . . . . . Retrieved Components . | . . . . . . . . . . . . . . . Parts Scanalyzed . | . . . . . . . . . . . . . . . Part Schematics Acquired . | . . . . . . . . . . . . . . . Parts Damaged . | . . . . . . . . . . . . . . . Bothacking | -11 -10 -10 -10 -8 -8 -8 -6 -6 -5 -5 -5 -5 -4 -4 ------------ Run | Yrd Mat Min Sub Mat Sto Rec Fac Ext Fac Upp Upp Zhi Pro Fac Used RIF Installer . | . . . . . . . . . . . . . . . Robots Hacked . | . . . . . . . . . . . . . . . Non-combat . | . . . . . . . . . . . . . . . Combat . | . . . . . . . . . . . . . . . Robot Hacks Applied . | . . . . . . . . . . . . . . . Relay Couplers Released 1 | . . . . . . . . . . . . . . 1 Machine Destruction 1 | . . . . . . . . . . . . . . 1 Fabnet Peak Effective % . | . . . . . . . . . . . . . . . Robots Rewired 16 | . . . . . . 12 . 2 . 2 . . . . Allies Hacked 1 | . . . . . . . 1 . . . . . . . Hacks Repelled . | . . . . . . . . . . . . . . . Allies | -11 -10 -10 -10 -8 -8 -8 -6 -6 -5 -5 -5 -5 -4 -4 -------- Run | Yrd Mat Min Sub Mat Sto Rec Fac Ext Fac Upp Upp Zhi Pro Fac Total Allies 33 | . . 3 . . 10 12 1 5 . 2 . . . . Largest Group 18 | . . 3 3 . 10 18 18 2 . 2 2 . . . Highest-Rated Group 258 | . . 74 74 . 173 258 258 56 . 60 60 . . . Highest-Rated Ally 39 | . . 31 31 . 29 29 29 39 . 30 30 . . . Total Orders 5 | . . . . . . 2 3 . . . . . . . STAY 4 | . . . . . . 1 3 . . . . . . . FOLLOW 1 | . . . . . . 1 . . . . . . . . Ally Attacks 177 | . . 3 14 . 13 53 75 14 . . 5 . . . Total Damage 2384 | . . 43 234 . 97 640 1036 215 . . 119 . . . Kills 23 | . . 1 1 . 1 9 8 2 . . 1 . . . Allies Corrupted . | . . . . . . . . . . . . . . . Allies Melted 1 | . . . . . . . . 1 . . . . . . Intel | -11 -10 -10 -10 -8 -8 -8 -6 -6 -5 -5 -5 -5 -4 -4 ------- Run | Yrd Mat Min Sub Mat Sto Rec Fac Ext Fac Upp Upp Zhi Pro Fac Active Infowar (turns) 5914 | . . . . . . . 688 34 295 1808 1223 715 526 625 Optics 362 | . . . . . . . . . . . . . . 362 Sensors 5793 | . . . . . . . 688 34 211 1771 1223 715 526 625 Jamming 340 | . . . . . . . . . 294 37 9 . . . Robot Analysis Total 4 | . . . . . . . . . . . . 4 . . Derelict Logs Recovered 7 | . . 2 2 . . . . . . 1 1 . 1 . Drone Launches . | . . . . . . . . . . . . . . . Drone Recoveries . | . . . . . . . . . . . . . . . Exploration | -11 -10 -10 -10 -8 -8 -8 -6 -6 -5 -5 -5 -5 -4 -4 ------------- Run | Yrd Mat Min Sub Mat Sto Rec Fac Ext Fac Upp Upp Zhi Pro Fac Turns Passed 17522 | 73 1592 364 3054 659 1391 2635 837 813 295 1906 1223 715 1072 893 Spaces Moved 7679 | 44 485 130 1222 299 496 936 944 679 226 741 580 187 393 317 Core 7 | 7 . . . . . . . . . . . . . . Treads 2252 | 37 485 130 1222 32 16 330 . . . . . . . . Legs 3573 | . . . . . 35 606 944 603 100 584 . 114 393 194 Wheels 1645 | . . . . 267 445 . . . . 157 580 73 . 123 Hover 202 | . . . . . . . . 76 126 . . . . . Flight . | . . . . . . . . . . . . . . . Fastest Speed 50 | 50 160 240 240 145 105 64 64 54 54 177 130 130 177 177 Average Speed 172 | 145 203 240 242 186 182 167 66 74 108 246 131 242 202 199 Slowest Speed 560 | 160 240 240 260 260 560 330 163 117 177 271 271 318 318 221 Overloaded Moves . | . . . . . . . . . . . . . . . Propulsion Burnouts . | . . . . . . . . . . . . . . . Robots Hopped . | . . . . . . . . . . . . . . . Potential Cave-ins 8 | . . . . . . . . 8 . . . . . . Cave-ins Triggered 1 | . . . . . . . . . . . . . 1 . Exploration Rate (%) 52 | 4 79 30 65 25 84 94 29 84 7 82 72 60 58 7 Regions Visited 14 Branch Regions 9 Pre-discovered Areas 12 | . . 2 1 . . 6 . . . . . 3 . . Known Exits Taken 9 | . . 1 . 1 . . 1 1 1 1 1 1 1 . Unknown Exits Taken 5 | 1 1 . 1 . 1 1 . . . . . . . . Scrap Searched 7 | . . 1 3 . . . . . . 1 . . 2 . Spaces Dug 31 | . . . 15 . . 1 . 11 3 . . . . 1 Terrain Destroyed 711 | . . 36 154 2 22 1 54 62 52 86 28 2 168 44 Melee 1 | . . . . . . 1 . . . . . . . . Projectile 148 | . . . . 2 22 . 8 55 15 17 5 2 13 9 AOE 562 | . . 36 154 . . . 46 7 37 69 23 . 155 35 Terrain Rammed . | . . . . . . . . . . . . . . . Walls Destroyed . | . . . . . . . . . . . . . . . Machines Disabled . | . . . . . . . . . . . . . . . Actions | -11 -10 -10 -10 -8 -8 -8 -6 -6 -5 -5 -5 -5 -4 -4 --------- Run | Yrd Mat Min Sub Mat Sto Rec Fac Ext Fac Upp Upp Zhi Pro Fac Total 11239 | 50 991 163 1274 373 766 1994 1105 906 261 800 1026 438 627 465 Wait 2488 | . 426 12 5 11 73 915 63 88 10 1 434 227 179 44 Move 7666 | 43 484 129 1221 299 495 935 943 678 225 740 579 186 392 317 Hop . | . . . . . . . . . . . . . . . Pick Up 95 | 1 14 6 3 21 15 3 17 2 4 2 1 3 . 3 Fast Attach 41 | 6 2 . 1 4 19 2 3 . . . . 1 . 3 Attach 38 | . 1 . 4 2 5 . 5 . 2 5 1 . 5 8 Detach 13 | . . . . . . 1 5 . . 3 . . 4 . Swap 28 | . 2 2 4 2 12 1 3 2 . . . . . . Drop 97 | . 3 1 2 14 28 28 6 5 . 1 1 3 2 3 Fire 553 | . 59 12 34 14 99 10 60 114 20 31 10 18 45 27 Melee 33 | . . . . . . 7 . . . . . . . 26 Ram 34 | . . . . . 1 . . . . . . . . 33 Kick . | . . . . . . . . . . . . . . . Crush 7 | . . 1 . 6 . . . . . . . . . . Escape Stasis . | . . . . . . . . . . . . . . . Rewire 129 | . . . . . 3 92 . 17 . 17 . . . . Trap . | . . . . . . . . . . . . . . . Miscellaneous 17 | . . . . . 16 . . . . . . . . 1 Route ------- -11/Scrapyard -10/Materials (discovered 5 exits: *Mat x3 / [*Min] / *Sub) -10/Mines (discovered 2 exits: *Mat / *Sub) -10/Subcaves -8/Materials -8/Storage (discovered 2 exits: [*Fac] / *Rec) -8/Recycling -6/Factory (discovered 6 exits: *Fac x2 / *Low x2 / *Ext x2) -6/Extension (discovered 3 exits: *Fac x2 / [*Cet]) -5/Factory -5/Upper Caves -5/Upper Caves (discovered 2 exits: *Fac / *Zhi) -5/Zhirov -4/Proximity Caves -4/Factory (discovered 4 exits: Res / Upp x2 / Arm) History --------- Turn | Location | Event 14 | -11/Scrapyard | Discovered new exit (range 15) 74 | -11/Scrapyard | Entered Materials 303 | -10/Materials | Build established: Mutant 337 | -10/Materials | Discovered new exit (range 16) 630 | -10/Materials | Discovered new exit (range 5) 845 | -10/Materials | Build established: Scavenger-Mutant 964 | -10/Materials | Discovered new exit (range 15) 1200 | -10/Materials | Discovered new exit (range 12) 1215 | -10/Materials | Learned Storage emergency access door positions 1288 | -10/Materials | Learned Storage emergency access door positions 1349 | -10/Materials | Learned 2 Mines zone layouts 1399 | -10/Materials | Learned Storage emergency access door positions 1475 | -10/Materials | Identified exit to Materials 1666 | -10/Materials | Entered Mines 1667 | -10/Mines | Identified exit to Subcaves 1679 | -10/Mines | Escorted by a lone wolf Derelict 1699 | -10/Mines | Learned location of Storage (-8) 1722 | -10/Mines | Learned location of Mines (-9) 1730 | -10/Mines | Assembled infested the area 1735 | -10/Mines | Assisted by a Guerilla fighting off Assembled 2030 | -10/Mines | Entered Subcaves 2030 | -10/Subcaves | Accompanied by 3 allies 2035 | -10/Subcaves | Led the pair of lost Derelicts to an unsafe place 2699 | -10/Subcaves | Learned Materials emergency access door positions 2844 | -10/Subcaves | Learned location of Zion (-6) 2844 | -10/Subcaves | Met a Zionite searching for "candidates" 2987 | -10/Subcaves | Core integrity fell below 50% 3255 | -10/Subcaves | Shifting Twisted Machinery released Spk. Treads 3282 | -10/Subcaves | Shifting Twisted Machinery released Spk. Treads 3399 | -10/Subcaves | Disturbed a concealed Subdweller 4091 | -10/Subcaves | Shifting Twisted Machinery released Sub. Beam Cannon 4792 | -10/Subcaves | Core integrity fell below 20% 4938 | -10/Subcaves | Discovered new exit (range 14) 4960 | -10/Subcaves | Build established: Mutant 5084 | -10/Subcaves | Entered Materials 5084 | -8/Materials | Evolved 4 slots: Power x1, Propulsion x2, Utility x1 5617 | -8/Materials | Identified exit to Storage 5743 | -8/Materials | Entered Storage 6316 | -8/Storage | Discovered new exit (range 5) 6345 | -8/Storage | Core integrity fell below 50% 6659 | -8/Storage | Assisted by bots powering up and referring to "LRC-V3" 6964 | -8/Storage | Build established: Commander-Mutant 7127 | -8/Storage | Used back door to open Recycling access 7127 | -8/Storage | Discovered new exit (range 3) 7134 | -8/Storage | Entered Recycling 7134 | -8/Recycling | Accompanied by 10 allies 8023 | -8/Recycling | Discovered new exit (range 10) 8133 | -8/Recycling | Entered Scraplab 8231 | -8/Recycling | Found Prototype Device 8231 | -8/Recycling | Identified Scrap Engine 8801 | -8/Recycling | Build established: Commander-Construct 9409 | -8/Recycling | Learned 2 Lower Caves zone layouts 9538 | -8/Recycling | Learned location of 1 exit from Lower Caves 9589 | -8/Recycling | Learned 4 Factory zone layouts 9632 | -8/Recycling | Learned location of 2 exits from Factory 9685 | -8/Recycling | Learned location of 1 exit from Storage 9746 | -8/Recycling | Learned location of 2 exits from Lower Caves 9769 | -8/Recycling | Entered Factory 9769 | -6/Factory | Accompanied by 18 allies 9769 | -6/Factory | Evolved 4 slots: Propulsion x1, Utility x2, Weapon x1 9770 | -6/Factory | Identified exit to Factory 9937 | -6/Factory | Found Prototype Launcher 9937 | -6/Factory | Identified Scatter Rocket Array 10037 | -6/Factory | Lost 14 allies 10095 | -6/Factory | Discovered new exit (range 16) 10142 | -6/Factory | Identified exit to Lower Caves 10301 | -6/Factory | Build established: Construct 10442 | -6/Factory | Discovered exit to Lower Caves (range 6) 10553 | -6/Factory | Identified exit to Extension 10606 | -6/Factory | Entered Extension 10694 | -6/Extension | Energy Cycler disabled 10694 | -6/Extension | Rescued a captive Derelict 10695 | -6/Extension | Rescued a captive Derelict 10695 | -6/Extension | Rescued a captive Derelict 10696 | -6/Extension | Rescued a captive Derelict 10696 | -6/Extension | Rescued a captive Derelict 10696 | -6/Extension | Rescued a captive Derelict 10697 | -6/Extension | Rescued a captive Derelict 10697 | -6/Extension | Rescued a captive Derelict 10698 | -6/Extension | Rescued a captive Derelict 10704 | -6/Extension | Rescued a captive Derelict 10725 | -6/Extension | Rescued a captive Derelict 11199 | -6/Extension | Discovered exit to Factory (range 10) 11200 | -6/Extension | Discovered new exit (range 6) 11244 | -6/Extension | Disrupted transfer network 11326 | -6/Extension | Spotted B-75 Beast 11341 | -6/Extension | Destroyed B-75 Beast 11357 | -6/Extension | Discovered exit to Factory (range 14) 11357 | -6/Extension | Spotted B-75 Beast 11368 | -6/Extension | Destroyed B-75 Beast 11398 | -6/Extension | Extracted ID and sensor layout for unrecognized location from A7's data core 11419 | -6/Extension | Entered Factory 11419 | -5/Factory | Evolved 2 slots: Utility x2 11682 | -5/Factory | Discovered new exit (range 13) 11691 | -5/Factory | Spotted B-75 Beast 11706 | -5/Factory | Identified exit to Upper Caves 11714 | -5/Factory | Entered Upper Caves 11716 | -5/Upper Caves | Attracted the attention of an 0b10 outpost 11985 | -5/Upper Caves | Learned 12 Factory zone layouts 12070 | -5/Upper Caves | Encountered a Warlord checkpoint 12595 | -5/Upper Caves | Attracted the attention of an 0b10 checkpoint 13399 | -5/Upper Caves | Acquired the password to a Derelict Tinkerer's latest research 13428 | -5/Upper Caves | Discovered new exit (range 7) 13473 | -5/Upper Caves | Found Prototype Special Weapon 13506 | -5/Upper Caves | Identified exit to Upper Caves 13620 | -5/Upper Caves | Entered another Upper Caves area 13620 | -5/Upper Caves | Accompanied by 2 allies 13674 | -5/Upper Caves | Discovered new exit (range 13) 13970 | -5/Upper Caves | Encountered a Warlord checkpoint 13997 | -5/Upper Caves | Learned Factory garrison access intel 14644 | -5/Upper Caves | Discovered new exit (range 10) 14654 | -5/Upper Caves | Identified exit to Zhirov 14843 | -5/Upper Caves | Entered Zhirov 14843 | -5/Zhirov | Discovered new exit (range 3) 14905 | -5/Zhirov | Found Alien Artifact 14905 | -5/Zhirov | Identified Integrated Dissipator 14905 | -5/Zhirov | Installed Integrated Dissipator, increased core heat dissipation (+20) 15367 | -5/Zhirov | Found Alien Artifact 15453 | -5/Zhirov | Learned location of Command (-1) 15555 | -5/Zhirov | Identified exit to Proximity Caves 15558 | -5/Zhirov | Entered Proximity Caves 15626 | -4/Proximity Caves | Spotter reported a threat 15645 | -4/Proximity Caves | Spotted B-86 Titan 15646 | -4/Proximity Caves | Spotter reported a threat 15688 | -4/Proximity Caves | Crushed by falling debris 15689 | -4/Proximity Caves | Destroyed B-86 Titan 15710 | -4/Proximity Caves | Spotter reported a threat 15750 | -4/Proximity Caves | Spotter reported a threat 15763 | -4/Proximity Caves | Spotter reported a threat 15825 | -4/Proximity Caves | Attracted the attention of an 0b10 checkpoint 16126 | -4/Proximity Caves | Learned Research stockpile data 16547 | -4/Proximity Caves | Discovered new exit (range 9) 16559 | -4/Proximity Caves | Identified exit to Factory 16630 | -4/Proximity Caves | Entered Factory 16630 | -4/Factory | Evolved 2 slots: Propulsion x1, Utility x1 16631 | -4/Factory | Identified exit to Research 16632 | -4/Factory | Loaded intel: 4 garrison access locations 16880 | -4/Factory | Search patrols dispatched 17042 | -4/Factory | Identified exit to Upper Caves 17042 | -4/Factory | Identified exit to Armory 17130 | -4/Factory | Search patrols dispatched 17325 | -4/Factory | Build established: Hacker-Construct 17380 | -4/Factory | Search patrols dispatched 17422 | -4/Factory | Core integrity fell below 50% 17482 | -4/Factory | System corruption reached 10% 17509 | -4/Factory | Lost 5 parts (1n1u3w) 17523 | -4/Factory | Self-destructed Last Messages --------------- 17504_ Slug penetrates Wall. 17506_ Wall collapses. 17506_ Slammed into H-77 Assassin. 17509_ Slug penetrates Subcomponent Replicator. 17510_ Slammed into H-77 Assassin. 17512_ Destabilizing: Core damaged (-11). 17514_ Penetrated by Slug. 17514_ Slug penetrates Wall. 17515_ Slammed into H-77 Assassin. 17515_ Destroyed Hpw. Shotgun. 17515_ H-77 Assassin system corrupted by crushing effect. 17516_ System corrupted: Energy discharge (-21). 17517_ Slammed into H-77 Assassin. 17517_ Penetrated by Slug. 17517_ Slug penetrates Earth. 17519_ Slammed into H-77 Assassin. 17523_ The unstable cave ceiling collapses. 17523_ Penetrated by Slug. 17523_ Slug penetrates Wall. Map ----- +----------------------------------------------------+ | ?????????????????????????######### | | ?????????????????????????????????####### | | ??????????????? ???????###???????????? | | ??????????????? ??????? #???????????? | | ??????????????+ ??????? #???????????? | | ??????????????# #?????? #???????????? | | ??????????????# #?????? #???????????? | | ??????????????# #?????? #???????????? | | ??????????????# #?????? #???????????? | | ??????????????# #?????? #???????????? | | ?????# # # ??????????????? | | ?????# # # ??????????????? | | ?????########## #######??????????????? | | ??????????????# #????????????????????? | | ???????????##?# #????????????????????? | | ???????##?# #?# #????????????????????? | | ???????# # #??# #????????????????????? | | ????#####;##### #????????????????????? | | ????# "G"" # #####????????????????? | | ????# " "" ; #????????????????? | | ????# ! #????????????????? | | ????#! # ###????????????????? | | ????# ! ##?????????????????? | | ????# ####???????????????? | | ????# " # # #####?????????? | | ????# " " @ h## #?????????? | | ????#+#### #?????????? | | ????# #??## # #?????????? | | ????# ######## # #?????????? | | ????# #?????????? | | ????#### # ! #?????????? | | ???????# "" # #?????????? | | ???????#""" ""% # #?????????? | | ########"T ! ""% #+#########?????????? | | # #""" """ # #?????????????????? | | # "" # "" ######????????????? | | # T" + #???????????? | | # "" # ##### ????????????? | | # # ####### ### #???? ????????????? | | # # #?#####+###+####? ????????????? | | ######## #?# #? ????????????? | | ?????### ### #? ????????????? | | ?????# # """ """ ?? ????????????? | | ?????# # """ """ ?? ????????????? | | ?????# + """ """ ## #???????????? | | ?????# # ## #???????????? | | ?????# # """ """ ## #???????????? | | ?????### ### """ """ ## #???????????? | | ######## #?# """ """ ## #???????????? | | # # #?# ## #???????????? | +----------------------------------------------------+ Best States ------------- Heat Dissipation 63 Energy Generation 33 Energy Capacity 510 Matter Stores 300 Matter Capacity 300 Sight Range 22 Robot Scan Range 16 Terrain Scan Density 10 Jamming Range 12 Armor Coverage 150 Resistance: KI 20 Evasion (%) 62 Targeting Accuracy 8 Recoil Reduction 3 Offensive Hacking 20 Defensive Hacking 14 Item Schematics ----------------- Assault Drone Bay | -5/Zhirov | Free Exp. Heat Sink | -5/Zhirov | Free Exp. Optical Array | -5/Zhirov | Free Imp. Arc Thrower | -5/Zhirov | Free Robot Schematics ------------------ None Fabricated ------------ Nothing Repaired ---------- Nothing Studied --------- None Alien Tech Used ----------------- Integrated Dissipator Achievements -------------- None Challenges ------------ None Game ------ Seed CompanionLauncherCoupler Manual? 0 Play Time 01:24:06 Cumulative 584.7 hours Start 2025.11.25 @ 09:58:04 End 2025.11.25 @ 11:53:38 Sessions 3 Manual Loads 0 Difficulty Rogue Special Mode None Game No. 916 Rogue 761 Adventurer 148 Explorer 7 Win Type - Total 28 Types 21/1/4/1/0/0/1/0/0/0 Lore% 81 Gallery% 84 Achievement% 72 Wizard Run 0 Options --------- Layout 1 ASCII 0 Keyboard 0 Movement Numpad Keybinds 0 Fullscreen 2 Font 24/Smallcaps Map View 50x35 Zoom Use 0% Tactical HUD 1 Map Filters NONE Filters NONE Steam 1 RUN: 58959022-9383-4c9a-95d8-604214a5bfc0